Cogmind - Beta 14 @@@ ROGUE MODE // 2025.03.07 @ 23:26:37 Player: Rudrot Result: Destroyed by S-10 Pest with Light Assault Rifle Performance ------------- Evolutions (1) 500 Regions Visited (2) 400 Robots Destroyed (26) 130 Value Destroyed (788) 788 Prototype IDs (5) 100 Alien Tech Used (0) 0 Bonus (0) 0 TOTAL SCORE: 1918 Bonus ------- None Cogmind --------- Core Integrity 0/400 Matter 183/300 Energy 59/100 System Corruption 0% Temperature Hot (288) Movement Core (50) Location -9/Materials Parts ------- > --- POWER (2) -------- (None) > --- PROPULSION (2) --- (None) > --- UTILITY (3) ------ Visual Processing Unit > --- WEAPON (2) ------- (None) > --- INVENTORY (5) ---- Large Battery (200) Improved Targeting Computer Particle Cannon Peak State ------------ > --- POWER ------------ Ion Engine Ion Engine > --- PROPULSION ------- Aluminum Leg Aluminum Leg > --- UTILITY ---------- Heat Sink Visual Processing Unit Improved Targeting Computer > --- WEAPON ----------- Improved EM Shotgun Particle Gun > --- INVENTORY -------- Aluminum Leg Improved Targeting Computer Particle Gun Particle Cannon [Rating: 14] Favorites ----------- Power Ion Engine Engine Ion Engine Propulsion Aluminum Leg Leg Aluminum Leg Utility Visual Processing Unit Device Heat Sink Storage Large Battery Processor Visual Processing Unit Weapon Medium Laser Energy Gun Medium Laser Energy Cannon Particle Cannon Build | -11 -10 -9 ------- Run | Yrd Mat Mat Slots Evolved 2 | . . 2 Power 1 | . . 1 Propulsion . | . . . Utility 1 | . . 1 Weapon . | . . . Parts Attached 31 | 7 10 14 Power 4 | 1 2 1 Engine 4 | 1 2 1 Core . | . . . Reactor . | . . . Propulsion 7 | 2 4 1 Treads . | . . . Leg 7 | 2 4 1 Wheel . | . . . Hover . | . . . Flight . | . . . Utility 5 | 1 2 2 Device 1 | . 1 . Storage 2 | 1 . 1 Processor 2 | . 1 1 Hackware . | . . . Protection . | . . . Artifact . | . . . Weapon 15 | 3 2 10 Energy Gun 13 | 3 2 8 Energy Cannon 2 | . . 2 Ballistic Gun . | . . . Ballistic Cannon . | . . . Launcher . | . . . Special Weapon . | . . . Impact Weapon . | . . . Slashing Weapon . | . . . Piercing Weapon . | . . . Special Melee Weapon . | . . . Unidentified Prototypes 1 | . . 1 Parts Lost 11 | . . 11 Power 2 | . . 2 Propulsion 2 | . . 2 Utility 2 | . . 2 Weapon 5 | . . 5 Highest Loss Streak 11 | . . 11 To Critical Strikes . | . . . Average Slot Usage (%) 97 | . 98 96 Engine 16 | . 13 20 Leg 25 | . 28 21 Device 11 | . 12 10 Storage 2 | . 1 3 Processor 15 | . 12 18 Energy Gun 19 | . 27 8 Energy Cannon 5 | . . 13 Peak Build Rating 14 | 6 8 14 Average Rating 9 | 5 7 12 On Entrance 4 | . 6 8 Naked Turns . | . . . Heaviest Build 20 | 14 14 20 Greatest Support 20 | 20 20 20 Greatest Overweight (x) 3 | 1 3 . Average Overweight (x) . | . . . Largest Inventory Capacity 8 | 8 8 5 Average Capacity 5 | 7 5 5 Most Carried 6 | 2 6 5 Average Carried 4 | 1 4 4 Final Capacity 8 | 8 5 5 Final Carried 5 | 2 5 3 Class Distribution -------------------- 76% | Mutant 23% | Scavenger-Mutant Dominant Class ---------------- Mutant | -10/Materials Scavenger-Mutant | -9/Materials Resources | -11 -10 -9 ----------- Run | Yrd Mat Mat Matter Collected 469 | 231 108 130 Remotely . | . . . Salvage Created 1012 | . 251 761 Parts 53 | . 12 41 Haulers Intercepted . | . . . Recyclers Shooed 1 | . . 1 Parts Field Recycled . | . . . Retrieved Matter . | . . . Parts Self-Destructed . | . . . Prevented . | . . . Kills | -11 -10 -9 ------- Run | Yrd Mat Mat Combat Hostiles Destroyed 19 | . 4 15 Guns 8 | . 3 5 Cannons 10 | . . 10 Classes Destroyed 7 | . 3 4 Builder 1 | . 1 . Recycler 1 | . . 1 Operator 1 | . . 1 Watcher 4 | . 2 2 Swarmer 3 | . . 3 Grunt 9 | . 4 5 Sentry 7 | . . 7 Best Kill Streak 4 | . 2 4 Combat Bots Only 3 | . 2 3 Max Kills in Single Turn 2 | . 2 2 Gunslinging 1 | . . 1 Exploded . | . . . Melee . | . . . Uniques/NPCs Destroyed . | . . . Combat | -11 -10 -9 -------- Run | Yrd Mat Mat Hostile Shots Fired 206 | . 20 186 Missed 65 | . 6 59 Damage Taken 1435 | . 155 1280 Core 412 | . 11 401 Absorbed by Shields . | . . . Core Remaining (%) 97 | 100 95 . Volleys Fired 68 | . 24 44 Largest 2 | . 2 2 Hottest 136 | . 100 136 Shots Fired 128 | . 47 81 Gun 75 | . 47 28 Cannon 53 | . . 53 Launcher . | . . . Special . | . . . Kinetic . | . . . Thermal 124 | . 47 77 Explosive . | . . . Electromagnetic 4 | . . 4 Robot Hit Streak 10 | . 6 10 Robot Miss Streak 3 | . 3 3 Penetration Max . | . . . Secondary Targets 2 | . 1 1 Max Gunslinging Chain 1 | . 1 1 Shots Hit Robots 72 | . 27 45 Core Hits 33 | . 11 22 Critical Kills . | . . . Critical Parts Destroyed . | . . . Critical Strikes 7 | . 4 3 Burn 7 | . 4 3 Melee Attacks . | . . . Impact . | . . . Slashing . | . . . Piercing . | . . . Sneak Attacks . | . . . Combat Hostiles . | . . . Follow-up Attacks . | . . . Damage Inflicted 1231 | . 386 845 Guns 626 | . 375 251 Cannons 594 | . . 594 Explosions . | . . . Melee . | . . . Ramming 11 | . 11 . Kinetic . | . . . Thermal 1186 | . 375 811 Explosive . | . . . Electromagnetic 34 | . . 34 Impact . | . . . Slashing . | . . . Piercing . | . . . Highest Corruption . | . . . Average Corruption . | . . . Corruption Purged . | . . . Corruption Blocked . | . . . Overload Shots . | . . . Overflow Damage 1 | . . 1 Projectiles 1 | . . 1 Explosions . | . . . Melee . | . . . Knockbacks . | . . . Impact . | . . . Kinetic . | . . . Secondary . | . . . Self-Inflicted Damage . | . . . Shots . | . . . Rammed . | . . . Targets Rammed 3 | . 3 . Kicked 3 | . 3 . Crushed . | . . . Highest Temperature 472 | . 313 472 Average Temperature 133 | . 127 137 Received Heat Transfer 477 | . 90 387 Effects 2 | . . 2 Matter Decay 2 | . . 2 Siege Activations . | . . . Robots Corrupted . | . . . Combat Hostiles . | . . . Parts Fried . | . . . Impact Corruptions . | . . . Robots Melted 1 | . 1 . Combat Hostiles 1 | . 1 . Parts Melted 11 | . 6 5 Heat Transferred 3306 | . 1406 1900 Parts Sabotaged . | . . . Parts Stolen . | . . . Parts Stripped . | . . . Power Chain Reactions . | . . . Alert | -11 -10 -9 ------- Run | Yrd Mat Mat Peak Influence 359 | . 132 359 Initial 14 | . . 14 Average 98 | . 41 187 Maximum Alert Level 1 | . . 1 Low Security (%) 82 | 100 100 56 Level 1 17 | . . 43 Level 2 . | . . . Level 3 . | . . . Level 4 . | . . . Level 5 . | . . . High Security . | . . . Max Security . | . . . Squads Dispatched 5 | . 1 4 Investigation 3 | . . 3 Extermination . | . . . Reinforcement 2 | . 1 1 Assault . | . . . Garrison . | . . . Intercept . | . . . Searches Triggered . | . . . Construction Impeded . | . . . Haulers Reinforced . | . . . Active Scanning Responses . | . . . Cargo Convoy Interrupts . | . . . Stealth | -11 -10 -9 --------- Run | Yrd Mat Mat Distress Signals 2 | . 2 . Communications Jammed . | . . . Distress Signals . | . . . Times Spotted 34 | . 9 25 Peak Tracking Total 10 | . 3 10 Tactical Retreats . | . . . Traps | -11 -10 -9 ------- Run | Yrd Mat Mat Traps Triggered 5 | . 2 3 Indirectly . | . . . Trap Hack Attempts . | . . . Triggered . | . . . Disarmed 7 | . 4 3 Reprogrammed . | . . . Reused . | . . . Traps Extracted . | . . . Installed . | . . . Triggered . | . . . Machines | -11 -10 -9 ---------- Run | Yrd Mat Mat Machines Disabled 2 | . . 2 Max in Single Turn 1 | . . 1 Machines Repaired . | . . . Machines Dismantled . | . . . Machines Sabotaged . | . . . Overloaded Fab Kills . | . . . Hacking | -11 -10 -9 --------- Run | Yrd Mat Mat Machines Accessed 10 | . 6 4 Terminals 9 | . 6 3 Fabricators . | . . . Repair Stations . | . . . Recycling Units . | . . . Scanalyzers 1 | . . 1 Garrison Access . | . . . Total Hacks 34 | . 22 12 Successful 16 | . 6 10 Failed 18 | . 16 2 Catastrophic 3 | . 1 2 Database Lockouts . | . . . Manual 1 | . . 1 Terminals 30 | . 22 8 Fabricators . | . . . Repair Stations . | . . . Recycling Units . | . . . Scanalyzers 4 | . . 4 Garrison Access . | . . . Terminal Hacks 12 | . 6 6 Record 2 | . 1 1 Prototype ID Bank 2 | . 1 1 Emergency Access Points 1 | . 1 . Locate Traps 2 | . 1 1 Disarm Traps 2 | . 1 1 Patrol Status 1 | . 1 . Investigation Status 1 | . . 1 Hauler Manifests 1 | . . 1 Fabricator Hacks . | . . . Repair Station Hacks . | . . . Recycling Unit Hacks . | . . . Scanalyzer 4 | . . 4 Insert Component 2 | . . 2 Analyze 2 | . . 2 Garrison Access Hacks . | . . . Unauthorized Hacks . | . . . Terminals . | . . . Fabricators . | . . . Repair Stations . | . . . Recycling Units . | . . . Scanalyzers . | . . . Garrison Access . | . . . Data Cores Recovered . | . . . Used . | . . . Hacking Detections 8 | . 5 3 Full Trace Events 3 | . 2 1 Feedback Events . | . . . Feedback Blocked . | . . . Robot Schematics Acquired . | . . . Robots Built . | . . . Authchips . | . . . Time . | . . . Total Robot Build Rating . | . . . Part Schematics Acquired 2 | . . 2 Parts Built . | . . . Authchips . | . . . Time . | . . . Total Part Build Rating . | . . . Parts Repaired . | . . . Time . | . . . Parts Recycled . | . . . Recycled Matter . | . . . Retrieved Matter . | . . . Retrieved Components . | . . . Parts Scanalyzed 2 | . . 2 Part Schematics Acquired 2 | . . 2 Parts Damaged . | . . . Bothacking | -11 -10 -9 ------------ Run | Yrd Mat Mat Used RIF Installer . | . . . Robots Hacked . | . . . Non-combat . | . . . Combat . | . . . Robot Hacks Applied . | . . . Relay Couplers Released . | . . . Fabnet Peak Effective % . | . . . Robots Rewired . | . . . Allies Hacked . | . . . Hacks Repelled . | . . . Allies | -11 -10 -9 -------- Run | Yrd Mat Mat Total Allies . | . . . Largest Group . | . . . Highest-Rated Group . | . . . Highest-Rated Ally . | . . . Total Orders . | . . . Ally Attacks . | . . . Total Damage . | . . . Kills . | . . . Allies Corrupted . | . . . Allies Melted . | . . . Intel | -11 -10 -9 ------- Run | Yrd Mat Mat Robot Analysis Total . | . . . Derelict Logs Recovered . | . . . Drone Launches . | . . . Drone Recoveries . | . . . Exploration | -11 -10 -9 ------------- Run | Yrd Mat Mat Turns Passed 1891 | 95 1029 767 Spaces Moved 1334 | 73 756 505 Core 17 | 9 1 7 Treads . | . . . Legs 1317 | 64 755 498 Wheels . | . . . Hover . | . . . Flight . | . . . Fastest Speed 50 | 50 120 50 Average Speed 119 | 113 120 119 Slowest Speed 200 | 120 200 120 Overloaded Moves . | . . . Propulsion Burnouts . | . . . Robots Hopped . | . . . Cave-ins Triggered . | . . . Exploration Rate (%) 47 | 5 90 48 Regions Visited 2 Branch Regions . Pre-discovered Areas . | . . . Known Exits Taken . | . . . Unknown Exits Taken 2 | 1 1 . Scrap Searched . | . . . Spaces Dug . | . . . Terrain Destroyed . | . . . Melee . | . . . Projectile . | . . . AOE . | . . . Terrain Rammed . | . . . Walls Destroyed . | . . . Machines Disabled . | . . . Actions | -11 -10 -9 --------- Run | Yrd Mat Mat Total 1500 | 82 829 589 Wait 37 | 1 23 13 Move 1332 | 72 755 505 Hop . | . . . Pick Up 14 | 1 7 6 Fast Attach 17 | 7 7 3 Attach 6 | . . 6 Detach 2 | 1 . 1 Swap 8 | . 3 5 Drop 13 | . 7 6 Fire 68 | . 24 44 Melee . | . . . Ram . | . . . Kick 3 | . 3 . Crush . | . . . Escape Stasis . | . . . Rewire . | . . . Trap . | . . . Miscellaneous . | . . . Route ------- -11/Scrapyard -10/Materials (discovered 5 exits: *Mat x3 / [*Min x2]) -9/Materials (discovered 2 exits: [*Mat] / [*Sto]) History --------- Turn | Location | Event 8 | -11/Scrapyard | Discovered new exit (range 15) 96 | -11/Scrapyard | Entered Materials 107 | -10/Materials | Discovered new exit (range 15) 265 | -10/Materials | Discovered new exit (range 18) 306 | -10/Materials | Build established: Mutant 363 | -10/Materials | Discovered new exit (range 10) 523 | -10/Materials | Discovered new exit (range 17) 965 | -10/Materials | Discovered new exit (range 10) 1125 | -10/Materials | Entered another Materials area 1125 | -9/Materials | Evolved 2 slots: Power x1, Utility x1 1533 | -9/Materials | Discovered new exit (range 10) 1700 | -9/Materials | Build established: Scavenger-Mutant 1730 | -9/Materials | Discovered new exit (range 4) 1874 | -9/Materials | Core integrity fell below 50% 1886 | -9/Materials | Core integrity fell below 20% 1892 | -9/Materials | Destroyed by S-10 Pest with Light Assault Rifle Last Messages --------------- 01869_ Aluminum Leg destroyed. 01869_ Ion Engine destroyed. 01871_ K-01 Serf collects debris. 01871_ Particle Cannon destroyed. 01872_ Heat Sink destroyed. 01874_ K-01 Serf collects debris. 01875_ Imp. EM Shotgun destroyed. 01878_ Overheating: Matter decay (-69). 01878_ K-01 Serf collects debris. 01880_ Overheating: Matter decay (-50). 01880_ K-01 Serf collects debris. 01882_ Particle Gun melted. 01882_ G-47 Trooper destroyed. 01884_ Particle Gun destroyed. 01884_ Acquired Sml. Laser. 01885_ K-01 Serf collects debris. 01889_ K-01 Serf destroyed. 01890_ Acquired 12 matter. 01891_ Sml. Laser destroyed. 01891_ K-01 Serf collects debris. Map ----- +----------------------------------------------------+ | | | ?????????????????????????????????????????????????? | | ?????????????????????????????????????????????????? | | ?????????????????????????????????????????????????? | | ?????????????????????????????????????????????????? | | ?????????????????????????????????????????????????? | | ?????????????????????????????????????????????????? | | ?????????????????????????????????????????????????? | | ?????????????????????????????????????????????????? | | ?????????????????????????????????????????????????? | | ????????????????????##+##????????????????????????? | | ????????????????????# ????????????????????????? | | ????????????????????# #????????????????????????? | | ????????????????????/ #????????????????????????? | | ????????????????????# #????????????????????????? | | ????????????????????# #????????????????????????? | | ????????????????????# #????????????????????????? | | ????????????????????# #????????????????????????? | | ????????????????????# #????????????????????????? | | ????????????????????# #????????????????????????? | | ????????????????????# #????????????????????????? | | ????????????????????# #????????????????????????? | | ????????????????????# #????????????????????????? | | ????????############# #????????????????????????? | | ??????### ########### +??????????? | | ??????#"" ! @%* #??????????? | | ??????#"" !!! g%[= #??????????? | | ??????#"T !!! =!% #??????????? | | ??????#"" % !!!=%= ###############??????????? | | ??????#"" = * !##????????????????????? | | ??????### *%= !#????????????????????? | | ????????# %=[ !#????????????????????? | | ????????# s= k !#????????????????????? | | ?#+## ### !#????????????????????? | | ss !##????????????????????? | | ?####### #### ####?????????????????????? | | ???????# #??# #????????????????????????? | | ?????#"" "" #??# #????????????????????????? | | ?????#"" %""""" #??# ???????????????????????? | | ?????#"T """"" #??# # ??????????????????????? | | ###??#"" """"" #??# ####?????????????????????? | | #??#"" """ #??# #????????????????????????? | | #??### #???#+##????????????????????????? | | ""#????# #??????? ??????????????????????? | | ""#????# """ #??????? ??????????????????????? | | ""#????# """"" #??????? ??????????????????????? | | #????# """"" #??????? ??????????????????????? | | ####???# """"" #??????"" ??????? ?????????????? | | #???# """ #??????"" ?#+####/###???????????? | | #???# #???????" ?# #???????????? | +----------------------------------------------------+ Best States ------------- Heat Dissipation 38 Energy Generation 15 Energy Capacity 600 Matter Stores 300 Matter Capacity 300 Sight Range 18 Terrain Scan Density 10 Evasion (%) 55 Targeting Accuracy 6 Item Schematics ----------------- Particle Cannon | -9/Materials | Scanalyzed Imp. Targeting Computer | -9/Materials | Scanalyzed Robot Schematics ------------------ None Fabricated ------------ Nothing Alien Tech Used ----------------- None Achievements -------------- None Challenges ------------ None Game ------ Seed RestorationGrapheneInsulator Manual? 0 Play Time 00:37:19 Cumulative 12.5 hours Start 2025.03.07 @ 22:47:48 End 2025.03.07 @ 23:26:37 Sessions 1 Manual Loads 0 Difficulty Rogue Special Mode None Game No. 7 Rogue 7 Adventurer 0 Explorer 0 Win Type - Total 0 Types 0/0/0/0/0/0/0/0/0 Lore% 4 Gallery% 8 Achievement% 12 Wizard Run 0 Options --------- Layout 1 ASCII 0 Keyboard 1 Movement Numpad Keybinds 0 Fullscreen 1 Font 24/Cog Map View 50x35 Zoom Use 0% Tactical HUD 1 Map Filters NONE Filters NONE Steam 1 RUN: 5a15af9e-42cd-4dad-a1a0-87bf98a34524